fUSD/lending_fUSD_20240109
["ID","MTS","AMOUNT","RATE_DAILY","PERIOD"]
[310986250,1704841841200,-161.72403562,0.00036089,2]
[310986253,1704841841210,-1944.977054,0.000361,23]
[310986255,1704841841220,-952.800292,0.00036107,2]
[310986257,1704841841230,-381.14,0.00036184,2]
[310986259,1704841841240,-2047.0,0.00036221,10]
[310986261,1704841841250,-151.38524979,0.0003623,30]
[310986263,1704841841259,-1158.79532186,0.00036253,8]
[310986265,1704841841271,-958.24,0.000363,3]
[310986267,1704841841281,-958.24,0.000363,3]
[310986269,1704841841290,-958.24,0.000363,3]
[310986271,1704841841300,-958.24,0.000363,3]
[310986273,1704841841310,-958.24,0.000363,3]
[310986276,1704841841320,-958.24,0.000363,3]
[310986278,1704841841329,-958.24,0.000363,3]
[310986280,1704841841339,-958.24,0.000363,3]
[310986282,1704841841349,-958.24,0.000363,3]
[310986284,1704841841359,-958.24,0.000363,3]
[310986286,1704841841368,-958.24,0.000363,3]
[310986288,1704841841379,-958.24,0.000363,3]
[310986290,1704841841389,-958.24,0.000363,3]
[310986292,1704841841400,-958.24,0.000363,3]
[310986294,1704841841409,-958.24,0.000363,3]
[310986296,1704841841419,-958.24,0.000363,3]
[310986299,1704841841429,-958.24,0.000363,3]
[310986301,1704841841442,-958.24,0.000363,3]
[310986303,1704841841452,-958.24,0.000363,3]
[310986305,1704841841463,-958.24,0.000363,3]
[310986307,1704841841473,-952.800292,0.00036353,2]
[310986309,1704841841483,-6991.2087025,0.000364,2]
[310986311,1704841841492,-6991.2087025,0.000364,2]
[310986313,1704841841502,-6991.2087025,0.000364,2]
[310986316,1704841841513,-6991.2087025,0.000364,2]
[310986318,1704841841528,-6991.2087025,0.000364,2]
[310986320,1704841841538,-6991.2087025,0.000364,2]
[310986322,1704841841548,-6991.2087025,0.000364,2]
[310986324,1704841841559,-6991.2087025,0.000364,2]
[310986326,1704841841572,-166.82,0.00036438,2]
[310986328,1704841841584,-166.82,0.00036438,46]
[310986330,1704841841595,-166.82,0.00036438,90]
[310986332,1704841841605,-190.99,0.00036449,2]
[310986334,1704841841616,-155.0,0.000365,2]
[310986336,1704841841628,-153.84,0.0003653,2]
[310986339,1704841841644,-559.19420109,0.00036562,4]
[310986341,1704841841654,-952.800292,0.00036598,2]
[310986343,1704841841666,-1500.0,0.000366,23]
[310986345,1704841841676,-578.98,0.00036613,15]
[310986347,1704841841686,-450.0,0.00036673,3]
[310986349,1704841841696,-2000.0,0.000368,2]
[310986351,1704841841705,-952.800292,0.00036843,2]
[310986353,1704841841716,-1004.4107,0.00036899,2]
[310986355,1704841841726,-203.0,0.00036908,11]
[310986357,1704841841735,-1000.0,0.00036986,2]
[310986359,1704841841745,-1000.0,0.00036986,2]
[310986361,1704841841755,-100000.0,0.00037,2]
[310986363,1704841841765,-197.02033305,0.00037,7]
[310986366,1704841841781,-345.91472599,0.00037,120]
[310986368,1704841841794,-209.51916391,0.00037,30]
[310986370,1704841841804,-650.0,0.00037,3]
[310986372,1704841841814,-161.72403562,0.00037038,2]
[310986374,1704841841825,-2712.48,0.00037075,2]
[310986376,1704841841835,-952.800292,0.00037089,2]
[310986378,1704841841844,-1500.0,0.000371,23]
[310986380,1704841841854,-276.431819,0.000371,2]
[310986427,1704841841863,-1056.76267655,0.00037111,2]
[310986429,1704841842282,-195.20090824,0.00037253,31]
[310986431,1704841842292,-999.999998,0.00037253,120]
[310986433,1704841842301,-2734.15869371,0.00037253,60]
[310986435,1704841842311,-1401.18561515,0.00037253,2]
[310986437,1704841842321,-900.0,0.00037253,3]
[310986439,1704841842330,-1650.17612534,0.00037253,120]
[310986441,1704841842339,-54580.65957157,0.00037253,2]
[310986442,1704841842349,-180.9006176,0.00037253,120]
[310986445,1704841842359,-55140.20905455,0.00037253,120]
[310986448,1704841842369,-158.68611755,0.00037253,120]
[310986451,1704841842378,-31153.29266227,0.00037253,30]
[310986453,1704841842387,-4196.34957623,0.00037253,120]
[310986456,1704841842396,-9428.9850126,0.00037253,60]
[310986458,1704841842405,-7549.33974606,0.00037253,2]
[310986460,1704841842414,-48357.66647886,0.00037253,2]
[310986462,1704841842424,-386.38638849,0.00037253,3]
[310986465,1704841842433,-153.99504201,0.00037253,120]
[310986468,1704841842442,-10282.26587039,0.00037253,2]
[310986471,1704841842452,-426.99434277,0.00037253,2]
[310986474,1704841842461,-12183.39279293,0.00037253,120]
[310986477,1704841842471,-446.36145622,0.00037253,120]
[310986480,1704841842481,-875.05203853,0.00037253,10]
[310986483,1704841842490,-5104.50441662,0.00037253,120]
[310986485,1704841842499,-215.50609417,0.00037253,30]
[310986487,1704841842509,-50131.49095591,0.00037253,120]
[310986489,1704841842519,-303.70178349,0.00037253,15]
[310986492,1704841842531,-152.43963118,0.00037253,120]
[310986495,1704841842540,-756.0,0.00037253,120]
[310986498,1704841842550,-1937.236888,0.00037253,30]
[310986501,1704841842560,-304.856372,0.00037253,30]
[310986502,1704841842570,-500.0,0.00037253,120]
[310986504,1704841842580,-4470.75019587,0.00037253,30]
[310986506,1704841842589,-4774.67028663,0.00037253,30]
[310986508,1704841842599,-1965.399855,0.00037253,30]
[310986511,1704841842609,-1000.0,0.0003726,4]
[310986513,1704841842618,-1000.0,0.0003726,4]
[310986515,1704841842628,-952.800292,0.00037334,2]
[310986517,1704841842638,-151.0,0.00037363,2]
[310986519,1704841842647,-250.49088,0.00037363,2]
[310986521,1704841842656,-153.84,0.00037443,2]
[310986523,1704841842666,-1000.0,0.00037534,6]
[310986525,1704841842675,-1000.0,0.00037534,6]
[310986527,1704841842684,-952.800292,0.0003758,2]
[310986529,1704841842693,-157.35674454,0.00037586,8]
[310986531,1704841842702,-8739.69155486,0.00037629,8]
[310986533,1704841842712,-872.24175309,0.00037674,5]
[310986535,1704841842722,-1000.0,0.00037697,10]
[310986537,1704841842731,-150.53995043,0.00037718,2]
[310986538,1704841842740,-150.53995043,0.00037718,6]
[310986539,1704841842749,-150.53995043,0.00037718,2]
[310986540,1704841842758,-150.53995043,0.00037718,2]
[310986541,1704841842767,-150.53995043,0.00037718,3]
[310986542,1704841842779,-150.53995043,0.00037718,5]
[310986543,1704841842788,-150.53995043,0.00037718,5]
[310986544,1704841842797,-150.53995043,0.00037718,6]
[310986545,1704841842806,-174.4300757,0.00037728,5]
[310986546,1704841842815,-409.05140219,0.00037753,5]
[310986547,1704841842824,-242.24756554,0.00037763,5]
[310986548,1704841842833,-196.99828399,0.00037763,5]
[310986550,1704841842843,-1000.0,0.00037763,10]
[310986552,1704841842852,-2000.0,0.000378,2]
[310986554,1704841842861,-534.08,0.00037808,10]
[310986556,1704841842871,-1000.0,0.00037808,10]
[310986558,1704841842880,-8133.52,0.00037808,2]
[310986560,1704841842889,-4616.82,0.00037808,2]
[310986562,1704841842898,-952.800292,0.00037825,2]
[310986565,1704841842908,-498.0,0.0003789,3]
[310986567,1704841842918,-222.38636779,0.00037897,2]
[310986569,1704841842927,-510.93,0.000379,2]
[310986571,1704841842936,-151.0,0.000379,7]
[310986573,1704841842945,-151.0,0.000379,7]
[310986575,1704841842954,-151.0,0.000379,7]
[310986577,1704841842964,-393.686593,0.000379,7]
[310986581,1704841842973,-393.686593,0.000379,7]
[310986584,1704841842982,-151.0,0.000379,7]
[310986586,1704841842991,-185.359581,0.000379,7]
[310986588,1704841843001,-185.359581,0.000379,7]
[310986590,1704841843009,-151.0,0.000379,7]
[310986592,1704841843019,-151.0,0.000379,7]
[310986594,1704841843029,-151.0,0.000379,7]
[310986596,1704841843038,-151.0,0.000379,7]
[310986598,1704841843047,-151.0,0.000379,7]
[310986600,1704841843055,-151.0,0.000379,7]
[310986602,1704841843065,-230.873158,0.000379,7]
[310986604,1704841843073,-230.873158,0.000379,7]
[310986606,1704841843083,-151.0,0.000379,7]
[310986608,1704841843093,-151.0,0.000379,7]
[310986610,1704841843102,-248.754266,0.000379,7]
[310986612,1704841843111,-248.754266,0.000379,7]
[310986614,1704841843120,-390.679241,0.000379,7]
[310986616,1704841843130,-390.679241,0.000379,7]
[310986618,1704841843139,-151.0,0.000379,7]
[310986620,1704841843148,-29765.0,0.000379,3]
[310986622,1704841843158,-151.0,0.000379,7]
[310986624,1704841843167,-679429.947679,0.000379,3]
[310986626,1704841843177,-151.0,0.000379,7]
[310986628,1704841843187,-155.21266,0.000379,7]
[310986630,1704841843197,-242.118197,0.000379,7]
[310986632,1704841843206,-151.0,0.000379,7]
[310986634,1704841843215,-151.0,0.000379,7]
[310986636,1704841843225,-151.0,0.000379,7]
[310986638,1704841843234,-172.9047307,0.00037989,2]
[310986640,1704841843243,-302.0,0.00037991,4]
[310986642,1704841843253,-100000.0,0.00038,2]
[310986645,1704841843263,-1658.77813122,0.00038,4]
[310986647,1704841843275,-157.31,0.00038,3]
[310986649,1704841843286,-157.31,0.00038,3]
[310986651,1704841843295,-157.31,0.00038,3]
[310986653,1704841843303,-157.31,0.00038,3]
[310986655,1704841843312,-157.31,0.00038,3]
[310986657,1704841843321,-157.31,0.00038,3]
[310986659,1704841843330,-600.0,0.00038,39]
[310986661,1704841843339,-203.0,0.00038007,13]
[310986663,1704841843348,-500.0,0.00038051,2]
[310986665,1704841843357,-245000.0,0.00038051,2]
[310986667,1704841843366,-1000.0,0.00038051,15]
[310986669,1704841843375,-952.800292,0.0003807,2]
[310986671,1704841843384,-1000.0,0.00038082,12]
[310986673,1704841843393,-333.4011,0.00038098,6]
[310986675,1704841843402,-3410.0,0.000381,3]
[310986677,1704841843412,-2047.0,0.00038127,10]
[310986679,1704841843421,-222.38636779,0.00038148,2]
[310986681,1704841843434,-74552.75302752,0.00038151,14]
[310986683,1704841843444,-57323.80380883,0.00038151,12]
[310986685,1704841843453,-24212.17411732,0.00038151,13]
[310986687,1704841843463,-5046.70142997,0.00038151,12]
[310986689,1704841843472,-155.46490209,0.00038207,7]
[310986691,1704841843481,-333.4011,0.00038298,6]
[310986693,1704841843490,-952.800292,0.00038316,2]
[310986695,1704841843500,-450.0,0.00038327,3]
[310986697,1704841843509,-2712.48,0.00038352,2]
[310986699,1704841843518,-666.0,0.00038356,2]
[310986701,1704841843529,-1000.0,0.00038356,14]
[310986703,1704841843538,-165.3229978,0.00038356,7]
[310986705,1704841843548,-161.93002219,0.00038356,7]
[310986707,1704841843557,-153.84,0.00038356,2]
[310986709,1704841843566,-8000.0,0.000384,2]
[310986711,1704841843576,-381.14,0.00038448,2]
[310986713,1704841843585,-333.4011,0.00038498,6]
[310986715,1704841843595,-44827.28484198,0.000385,7]
[310986717,1704841843604,-152.66700614,0.00038523,7]
[310986719,1704841843613,-952.800292,0.00038561,2]
[310986721,1704841843622,-150.0,0.00038627,120]
[310986723,1704841843632,-604.0,0.0003863,7]
[310986725,1704841843641,-1000.0,0.0003863,16]
[310986727,1704841843650,-200.0,0.00038654,2]
[310986729,1704841843660,-189.214,0.00038667,2]
[310986732,1704841843669,-375.406,0.00038667,2]
[310986733,1704841843678,-684.707,0.00038667,2]
[310986735,1704841843688,-2899.0,0.00038667,2]
[310986738,1704841843697,-1152.982,0.00038667,2]
[310986739,1704841843707,-1393.742,0.00038667,2]
[310986741,1704841843716,-2268.0,0.00038667,2]
[310986743,1704841843725,-1027.0,0.00038667,2]
[310986745,1704841843735,-1056.76267655,0.00038689,2]
[310986748,1704841843744,-333.4011,0.00038698,6]
[310986750,1704841843753,-150.0,0.00038701,7]
[310986752,1704841843763,-152.22288177,0.00038755,7]
[310986754,1704841843774,-22875.84468121,0.000388,4]
[310986756,1704841843783,-14987.45308177,0.000388,30]
[310986758,1704841843795,-2000.0,0.000388,2]
[310986760,1704841843804,-952.800292,0.00038807,2]
[310986762,1704841843813,-333.4011,0.00038898,8]
[310986764,1704841843822,-1000.0,0.000389,2]
[310986766,1704841843832,-1000.0,0.00038904,18]
[310986768,1704841843841,-547.56502599,0.00038914,5]
[310986770,1704841843850,-257.73161158,0.00038979,2]
[310986772,1704841843859,-281.54706286,0.0003898,2]
[310986774,1704841843869,-333.4011,0.00038998,8]
[310986776,1704841843878,-43469.83002489,0.00039,2]
[310986779,1704841843896,-56530.16997511,0.00039,2]
[310986781,1704841843906,-151.0,0.00039,7]
[310986783,1704841843915,-151.0,0.00039,7]
[310986785,1704841843924,-151.0,0.00039,7]
[310986787,1704841843933,-393.686593,0.00039,7]
[310986789,1704841843942,-393.686593,0.00039,7]
[310986791,1704841843951,-151.0,0.00039,7]
[310986793,1704841843960,-185.359581,0.00039,7]
[310986795,1704841843969,-185.359581,0.00039,7]
[310986796,1704841843978,-151.0,0.00039,7]
[310986797,1704841843987,-171.82255,0.00039,7]
[310986799,1704841843997,-201.388793,0.00039,7]
[310986801,1704841844006,-151.0,0.00039,7]
[310986803,1704841844016,-151.0,0.00039,7]
[310986805,1704841844026,-151.0,0.00039,7]
[310986807,1704841844036,-230.873158,0.00039,7]
[310986809,1704841844045,-230.873158,0.00039,7]
[310986811,1704841844055,-151.0,0.00039,7]
[310986813,1704841844064,-152.199092,0.00039,7]
[310986816,1704841844074,-248.754266,0.00039,7]
[310986818,1704841844083,-248.754266,0.00039,7]
[310986820,1704841844092,-390.679241,0.00039,7]
[310986822,1704841844101,-390.679241,0.00039,7]
[310986824,1704841844110,-151.0,0.00039,7]
[310986826,1704841844119,-151.0,0.00039,7]
[310986828,1704841844128,-151.0,0.00039,7]
[310986830,1704841844137,-151.0,0.00039,7]
[310986832,1704841844145,-276.648244,0.00039,7]
[310986834,1704841844154,-196.69246782,0.00039,4]
[310986836,1704841844164,-600.0,0.00039,40]
[310986838,1704841844173,-700.0,0.00039,3]
[310986840,1704841844182,-958.24,0.00039,3]
[310986842,1704841844191,-958.24,0.00039,3]
[310986844,1704841844200,-958.24,0.00039,3]
[310986846,1704841844210,-958.24,0.00039,3]
[310986848,1704841844220,-958.24,0.00039,3]
[310986850,1704841844233,-958.24,0.00039,3]
[310986852,1704841844243,-958.24,0.00039,3]
[310986854,1704841844252,-958.24,0.00039,3]
[310986856,1704841844260,-958.24,0.00039,3]
[310986858,1704841844269,-958.24,0.00039,3]
[310986860,1704841844280,-958.24,0.00039,3]
[310986862,1704841844291,-958.24,0.00039,3]
[310986863,1704841844309,-958.24,0.00039,3]
[310986866,1704841844319,-958.24,0.00039,3]
[310986868,1704841844328,-958.24,0.00039,3]
[310986870,1704841844338,-958.24,0.00039,3]
[310986872,1704841844347,-958.24,0.00039,3]
[310986874,1704841844356,-958.24,0.00039,3]
[310986876,1704841844365,-958.24,0.00039,3]
[310986878,1704841844373,-958.24,0.00039,3]
[310986880,1704841844383,-150.0,0.00039046,7]
[310986881,1704841844392,-952.800292,0.00039052,2]
[310986884,1704841844402,-161.72403562,0.00039058,2]
[310986886,1704841844411,-333.4011,0.00039098,8]
[310986888,1704841844420,-203.0,0.00039107,15]
[310986890,1704841844429,-2202.0289229,0.00039111,20]
[310986892,1704841844438,-1000.0,0.00039178,20]
[310986894,1704841844448,-152.08,0.00039178,2]
[310986896,1704841844457,-152.9028419,0.0003919,7]
[310986908,1704841844562,-234.4011,0.00039198,8]
[310986910,1704841844572,-201.0,0.000392,120]
[310986912,1704841844581,-199.81,0.0003926,2]
[310986914,1704841844595,-153.84,0.00039269,2]
[310986916,1704841844605,-166.99392,0.00039279,4]
[310986918,1704841844614,-952.800292,0.00039297,2]
[310986920,1704841844623,-333.4011,0.00039298,8]
[310986922,1704841844632,-944.0,0.00039352,2]
[310986924,1704841844641,-171.708,0.00039352,2]
[310986926,1704841844650,-1234.0,0.00039352,2]
[310986928,1704841844660,-272.766,0.00039352,2]
[310986930,1704841844669,-318.0,0.00039352,2]
[310986932,1704841844678,-881.0,0.00039352,2]
[310986934,1704841844687,-150.0,0.00039392,7]
[310986936,1704841844696,-180.4011,0.00039398,8]
[310986938,1704841844706,-200.19976575,0.00039452,7]
[310986940,1704841844715,-167.84841965,0.00039452,7]
[310986942,1704841844724,-160.68930144,0.00039452,7]
[310986944,1704841844733,-172.28607204,0.00039452,7]
[310986946,1704841844742,-166.6963483,0.00039452,7]
[310986948,1704841844750,-153.72122562,0.00039452,7]
[310986950,1704841844759,-162.38404757,0.00039452,7]
[310986952,1704841844768,-159.58308396,0.00039452,7]
[310986954,1704841844779,-1000.0,0.00039452,22]
[310986956,1704841844787,-333.4011,0.00039498,8]
[310986958,1704841844797,-186.0,0.00039528,2]
[310986960,1704841844808,-952.800292,0.00039543,2]
[310986962,1704841844817,-171.288262,0.00039588,2]
[310986964,1704841844826,-234.4011,0.00039598,8]
[310986966,1704841844836,-1208.0,0.00039608,30]
[310986968,1704841844844,-2712.48,0.0003963,2]
[310986970,1704841844854,-157.44418418,0.00039631,7]
[310986972,1704841844863,-333.4011,0.00039698,8]
[310986974,1704841844872,-6117.0,0.000397,2]
[310986976,1704841844881,-500.0,0.00039725,10]
[310986978,1704841844890,-1000.0,0.00039726,24]
[310986980,1704841844899,-952.800292,0.00039788,2]
[310986982,1704841844909,-234.4011,0.00039798,8]
[310986984,1704841844918,-980.48609171,0.000398,4]
[310986986,1704841844928,-2000.0,0.000398,2]
[310986988,1704841844936,-151.37985866,0.00039818,7]
[310986990,1704841844945,-14330.59847731,0.00039864,2]
[310986992,1704841844954,-333.4011,0.00039898,8]
[310986994,1704841844963,-275.7068033,0.000399,4]
[310986996,1704841844973,-563.34407594,0.0003998,3]
[310986998,1704841844983,-745.08259378,0.0003998,3]
[310987000,1704841844992,-407.65,0.00039987,2]
[310987002,1704841845001,-313.91,0.00039987,2]
[310987004,1704841845011,-407.65,0.00039987,2]
[310987006,1704841845020,-397.31,0.00039987,2]
[310987008,1704841845030,-625.74,0.00039987,2]
[310987010,1704841845038,-407.44,0.00039987,2]
[310987012,1704841845047,-502.5,0.00039987,2]
[310987014,1704841845056,-234.4011,0.00039998,8]
[310987016,1704841845067,-7333.87624666,0.00039999,2]
[310987018,1704841845076,-100000.0,0.0004,3]
[310987020,1704841845085,-291.06936418,0.0004,2]
[310987021,1704841845095,-679.0,0.0004,2]
[310987022,1704841845104,-1687.99,0.0004,7]
[310987023,1704841845113,-1687.98,0.0004,7]
[310987024,1704841845123,-1688.0,0.0004,7]
[310987025,1704841845132,-1688.0,0.0004,7]
[310987026,1704841845141,-1688.0,0.0004,7]
[310987027,1704841845150,-1688.0,0.0004,7]
[310987028,1704841845159,-1688.0,0.0004,7]
[310987029,1704841845168,-1702.33,0.0004,7]
[310987031,1704841845177,-54181.40254981,0.0004,4]
[310987033,1704841845187,-6278.09481333,0.0004,4]
[310987035,1704841845196,-272.7969938,0.0004,10]
[310987036,1704841845204,-6808.57416919,0.0004,4]
[310987039,1704841845214,-249.26585059,0.0004,120]
[310987041,1704841845224,-617.44681957,0.0004,4]
[310987043,1704841845233,-360.0,0.0004,12]
[310987044,1704841845242,-1000.0,0.0004,26]
[310987046,1704841845252,-899.999999,0.0004,41]
[310987048,1704841845261,-5000.0,0.0004,60]
[310987050,1704841845271,-150.92,0.0004,2]
[310987053,1704841845279,-150.92,0.0004,2]
[310987056,1704841845288,-150.92,0.0004,2]
[310987058,1704841845297,-150.92,0.0004,2]
[310987061,1704841845306,-150.92,0.0004,2]
[310987063,1704841845315,-150.92,0.0004,2]
[310987065,1704841845324,-150.92,0.0004,2]
[310987067,1704841845333,-150.92,0.0004,2]
[310987069,1704841845342,-150.92,0.0004,2]
[310987071,1704841845351,-150.92,0.0004,2]
[310987073,1704841845360,-150.92,0.0004,2]
[310987075,1704841845369,-150.92,0.0004,2]
[310987077,1704841845378,-150.92,0.0004,2]
[310987079,1704841845388,-150.92,0.0004,2]
[310987081,1704841845396,-150.92,0.0004,2]
[310987083,1704841845405,-150.92,0.0004,2]
[310987085,1704841845415,-150.92,0.0004,2]
[310987087,1704841845424,-150.92,0.0004,2]
[310987089,1704841845433,-150.92,0.0004,2]
[310987091,1704841845442,-150.92,0.0004,2]
[310987093,1704841845451,-150.92,0.0004,2]
[310987095,1704841845460,-150.92,0.0004,2]
[310987097,1704841845469,-150.92,0.0004,2]
[310987099,1704841845479,-150.92,0.0004,2]
[310987101,1704841845488,-150.92,0.0004,2]
[310987103,1704841845497,-150.92,0.0004,2]
[310987105,1704841845507,-150.92,0.0004,2]
[310987107,1704841845517,-150.92,0.0004,2]
[310987109,1704841845527,-150.92,0.0004,2]
[310987111,1704841845536,-150.92,0.0004,2]
[310987113,1704841845546,-150.92,0.0004,2]
[310987115,1704841845555,-150.92,0.0004,2]
[310987117,1704841845564,-150.92,0.0004,2]
[310987119,1704841845573,-150.92,0.0004,2]
[310987121,1704841845583,-150.92,0.0004,2]
[310987123,1704841845592,-150.92,0.0004,2]
[310987126,1704841845602,-150.92,0.0004,2]
[310987128,1704841845611,-150.92,0.0004,2]
[310987129,1704841845621,-150.92,0.0004,2]
[310987131,1704841845631,-150.92,0.0004,2]
[310987134,1704841845640,-150.92,0.0004,2]
[310987136,1704841845649,-150.92,0.0004,2]
[310987138,1704841845658,-150.92,0.0004,2]
[310987139,1704841845668,-150.92,0.0004,2]
[310987142,1704841845677,-150.92,0.0004,2]
[310987144,1704841845687,-150.92,0.0004,2]
[310987146,1704841845696,-150.92,0.0004,2]
[310987147,1704841845705,-150.92,0.0004,2]
[310987150,1704841845715,-150.92,0.0004,2]
[310987152,1704841845724,-150.92,0.0004,2]
[310987153,1704841845733,-150.92,0.0004,2]
[310987155,1704841845742,-150.92,0.0004,2]
[310987157,1704841845752,-150.92,0.0004,2]
[310987159,1704841845762,-150.92,0.0004,2]
[310987162,1704841845771,-150.92,0.0004,2]
[310987163,1704841845782,-150.92,0.0004,2]
[310987165,1704841845795,-150.92,0.0004,2]
[310987167,1704841845805,-150.92,0.0004,2]
[310987169,1704841845814,-150.92,0.0004,2]
[310987171,1704841845824,-150.92,0.0004,2]
[310987174,1704841845834,-150.92,0.0004,2]
[310987175,1704841845843,-150.92,0.0004,2]
[310987178,1704841845853,-450.0,0.0004002,10]
[310987180,1704841845862,-952.800292,0.00040034,2]
[310987182,1704841845871,-154.89,0.00040062,2]
[310987184,1704841845880,-500.0,0.00040091,2]
[310987185,1704841845889,-333.4011,0.00040098,8]
[310987187,1704841845898,-2047.0,0.00040134,10]
[310987189,1704841845907,-380.0,0.00040168,11]
[310987190,1704841845916,-204.932,0.00040175,4]
[310987191,1704841845925,-204.932,0.00040175,4]
[310987192,1704841845934,-204.932,0.00040175,4]
[310987193,1704841845943,-204.932,0.00040175,4]
[310987194,1704841845953,-204.932,0.00040175,4]
[310987195,1704841845962,-153.84,0.00040183,2]
[310987196,1704841845971,-234.4011,0.00040198,8]
[310987197,1704841845980,-203.0,0.00040207,18]
[310987198,1704841845990,-1056.76267655,0.00040268,5]
[310987199,1704841845999,-1000.0,0.00040273,28]
[310987200,1704841846009,-952.800292,0.00040279,2]
[310987201,1704841846017,-333.4011,0.00040298,8]
[310987202,1704841846027,-157.79,0.00040327,2]
[310987203,1704841846037,-578.98,0.00040349,15]
[310987204,1704841846046,-234.4011,0.00040398,8]
[310987205,1704841846056,-152.66700614,0.00040496,7]
[310987206,1704841846065,-333.4011,0.00040498,8]
[310987207,1704841846074,-20000.0,0.000405,2]
[310987208,1704841846083,-3934.15962479,0.000405,30]
[310987209,1704841846093,-152.66700615,0.00040505,7]
[310987210,1704841846102,-952.800292,0.00040524,2]
[310987211,1704841846111,-1000.0,0.00040547,30]
[310987212,1704841846120,-157.44418418,0.00040552,7]
[310987213,1704841846130,-155.90564938,0.00040577,7]
[310987214,1704841846139,-204.461,0.00040585,4]
[310987215,1704841846149,-204.462,0.00040585,4]
[310987216,1704841846158,-204.462,0.00040585,4]
[310987217,1704841846167,-204.462,0.00040585,4]
[310987218,1704841846176,-204.462,0.00040585,4]
[310987219,1704841846186,-1162.000002,0.0004059,2]
[310987220,1704841846195,-234.4011,0.00040598,8]
[310987222,1704841846205,-150.0,0.00040632,2]
[310987224,1704841846214,-800.0,0.00040667,10]
[310987226,1704841846223,-150.0,0.00040686,2]
[310987228,1704841846233,-333.4011,0.00040698,8]
[310987230,1704841846242,-201.0,0.000407,120]
[310987231,1704841846251,-381.14,0.00040712,2]
[310987232,1704841846260,-952.800292,0.0004077,2]
[310987233,1704841846269,-821.57,0.0004077,7]
[310987234,1704841846280,-234.4011,0.00040798,8]
[310987235,1704841846289,-2000.0,0.000408,2]
[310987236,1704841846298,-3000.0,0.0004082,6]
[310987237,1704841846307,-1000.0,0.00040821,32]
[310987238,1704841846316,-500.0,0.00040821,10]
[310987239,1704841846326,-157.44418418,0.00040864,7]
[310987240,1704841846335,-209.0,0.00040885,2]
[310987241,1704841846344,-333.4011,0.00040898,8]
[310987242,1704841846354,-3000.0,0.00040941,6]
[310987243,1704841846363,-3000.0,0.00040941,6]
[310987244,1704841846374,-13658.834999,0.00040986,45]
[310987245,1704841846383,-1255.0,0.0004099,3]
[310987246,1704841846392,-200.0,0.00040995,2]
[310987247,1704841846402,-2533.21800876,0.00040995,4]
[310987248,1704841846411,-1019.74229313,0.00040995,4]
[310987249,1704841846421,-158.13580433,0.00040995,7]
[310987250,1704841846430,-2000.0,0.00040995,7]
[310987251,1704841846440,-200.0,0.00040995,7]
[310987252,1704841846450,-2000.0,0.00040995,7]
[310987253,1704841846459,-200.0,0.00040995,7]
[310987254,1704841846468,-151.0,0.00040995,7]
[310987255,1704841846478,-151.0,0.00040995,7]